Cogmind - Beta 17 @@@ ROGUE MODE // 2026.08.02 @ 13:12:26 Player: puppuppit Result: Destroyed by G-47 Trooper with Particle Gun Performance ------------- Evolutions (2) 1000 Regions Visited (7) 1400 Robots Destroyed (172) 860 Value Destroyed (6465) 6465 Prototype IDs (4) 80 Alien Tech Used (0) 0 Bonus (1549) 1549 TOTAL SCORE: 11354 Bonus ------- High Alert Combat Kills 983 Follower Combat Kills 366 Entered Garrisons 200 Cogmind --------- Core Integrity 0/550 Matter 131/300 Energy 265/265 System Corruption 1% Temperature Cool (44) Movement Treading (200) Ox1 Location -8/Materials Parts ------- > --- POWER (1) -------- Reinforced Ion Engine > --- PROPULSION (2) --- Light Treads Light Treads > --- UTILITY (4) ------ Large Storage Unit Core Analyzer Core Analyzer Hacking Suite > --- WEAPON (4) ------- Gauss Rifle Gauss Rifle Gauss Rifle Coil Gun > --- INVENTORY (15) --- Improved Deuterium Engine Light Treads Light Treads Combat Airjet Improved Cooling System Large Matter Pod (150) High-capacity Matter Pod (200) Compact Matter Pod (150) Experimental Sensor Array Advanced Signal Interpreter Improved Target Analyzer Armor Integrity Analyzer Enhanced Autogun Gauss Rifle Improved Grenade Launcher Peak State ------------ > --- POWER ------------ Improved Deuterium Engine > --- PROPULSION ------- Light Treads Light Treads > --- UTILITY ---------- Large Storage Unit Core Analyzer Core Analyzer Hacking Suite > --- WEAPON ----------- Gauss Rifle Gauss Rifle Gauss Rifle Coil Gun > --- INVENTORY -------- Improved Deuterium Engine Light Treads Light Treads Combat Airjet Improved Cooling System Large Matter Pod Large Matter Pod High-capacity Matter Pod Experimental Sensor Array Advanced Signal Interpreter Improved Target Analyzer Armor Integrity Analyzer Enhanced Autogun Gauss Rifle Grenade Launcher [Rating: 40] Favorites ----------- Power Improved Deuterium Engine Engine Improved Deuterium Engine Power Core Light Nuclear Core Propulsion Light Treads Treads Light Treads Utility Large Storage Unit Device Improved Terrain Scanner Storage Large Storage Unit Processor Core Analyzer Hackware Hacking Suite Protection Light Armor Plating Weapon Light Assault Rifle Energy Gun Medium Laser Energy Cannon Phase Cannon Ballistic Gun Light Assault Rifle Launcher Rocket Launcher Build | -11 -10 -10 -10 -9 -8 -8 -8 ------- Run | Yrd Mat Min Exi Min Mat Gar Mat Slots Evolved 4 | . . . . . 4 . . Power . | . . . . . . . . Propulsion . | . . . . . . . . Utility 2 | . . . . . 2 . . Weapon 2 | . . . . . 2 . . Parts Attached 83 | 7 6 6 . 1 37 22 4 Power 12 | 1 2 1 . . 3 4 1 Engine 9 | 1 1 1 . . 2 3 1 Core 3 | . 1 . . . 1 1 . Reactor . | . . . . . . . . Propulsion 17 | 2 . 2 . . 7 4 2 Treads 17 | 2 . 2 . . 7 4 2 Leg . | . . . . . . . . Wheel . | . . . . . . . . Hover . | . . . . . . . . Flight . | . . . . . . . . Utility 21 | 2 1 1 . . 13 4 . Device 6 | 1 . . . . 5 . . Storage 3 | 1 1 . . . 1 . . Processor 2 | . . . . . . 2 . Hackware 4 | . . . . . 3 1 . Protection 6 | . . 1 . . 4 1 . Artifact . | . . . . . . . . Weapon 33 | 2 3 2 . 1 14 10 1 Energy Gun 1 | 1 . . . . . . . Energy Cannon 1 | . . . . . . 1 . Ballistic Gun 26 | 1 2 1 . . 14 8 . Ballistic Cannon . | . . . . . . . . Launcher 5 | . 1 1 . 1 . 1 1 Special Weapon . | . . . . . . . . Impact Weapon . | . . . . . . . . Slashing Weapon . | . . . . . . . . Piercing Weapon . | . . . . . . . . Special Melee Weapon . | . . . . . . . . Unidentified Prototypes 1 | . . . . . 1 . . Parts Lost 28 | . . 6 . . 13 9 . Power 2 | . . 1 . . 1 . . Propulsion 5 | . . 2 . . 2 1 . Utility 8 | . . 1 . . 4 3 . Weapon 13 | . . 2 . . 6 5 . Highest Loss Streak 6 | . . 6 . . 5 3 . To Critical Strikes 1 | . . . . . . 1 . Average Backups 13 | . 10 13 14 15 14 14 14 Power 1 | . 1 1 1 2 2 . 1 Propulsion 1 | . 1 1 . . 2 3 3 Utility 6 | . 5 6 6 6 5 7 8 Weapon 3 | . 2 4 7 7 4 2 2 Tool/Special . | . . . . . . . . Unused Backups 25 | . . 3 4 1 2 4 11 Power 5 | . . . 1 . . 3 1 Propulsion 3 | . . . . . 1 1 1 Utility 16 | . . 2 3 1 1 . 9 Weapon 1 | . . 1 . . . . . Tool/Special . | . . . . . . . . Average Slot Usage (%) 96 | . 99 93 77 100 96 98 100 Engine 8 | . 9 1 14 14 8 8 9 Core 1 | . 4 7 . . . . . Treads 21 | . 28 27 28 28 17 17 18 Device 6 | . 13 7 . . 11 . . Storage 10 | . 14 14 14 14 9 9 9 Processor 4 | . . . . . . 11 18 Hackware 6 | . . . . . 8 12 9 Protection 3 | . . 6 14 14 4 1 . Energy Gun 3 | . 6 6 2 13 . . . Ballistic Gun 28 | . 20 21 2 14 35 34 35 Peak Build Rating 40 | 9 12 12 9 11 32 40 40 Average Rating 22 | 6 10 9 7 9 26 35 38 On Entrance 15 | . 9 12 9 9 10 31 40 Avg Prop Armor Cover (%) . | . . . . . . . . Naked Turns . | . . . . . . . . Heaviest Build 57 | 12 29 29 29 29 57 49 48 Greatest Support 40 | 40 40 40 40 40 40 40 40 Greatest Overweight (x) 12 | . . . . . 12 1 1 Average Overweight (x) . | . . . . . . . 1 Largest Inventory Capacity 15 | 8 15 15 15 15 15 15 15 Average Capacity 14 | 7 12 15 15 15 15 15 15 Most Carried 15 | 2 15 15 15 15 15 15 15 Average Carried 13 | . 10 13 14 15 14 14 14 Final Capacity 15 | 8 15 15 15 15 15 15 15 Final Carried 15 | 2 15 15 15 15 15 15 15 Class Distribution -------------------- 34% | Scavenger-Gunner 24% | Mutant 16% | Scavenger-Mutant 12% | Scavenger-Tank 10% | Hacker-Gunner Dominant Class ---------------- Mutant | -10/Materials Scavenger-Mutant | -10/Mines Mutant | -10/Exiles Scavenger-Mutant | -9/Mines Scavenger-Tank | -8/Materials Scavenger-Gunner | -8/Garrison Scavenger-Gunner | -8/Materials Resources | -11 -10 -10 -10 -9 -8 -8 -8 ----------- Run | Yrd Mat Min Exi Min Mat Gar Mat Matter Collected 5082 | 363 740 192 28 135 2047 1280 297 Remotely . | . . . . . . . . Salvage Created 6490 | 256 1187 196 . 79 3012 1459 301 Parts 355 | 13 76 8 . 6 163 67 22 Haulers Intercepted 5 | . 1 . . . 3 . 1 Recyclers Shooed 8 | 2 3 . . . 3 . . Parts Field Recycled . | . . . . . . . . Retrieved Matter . | . . . . . . . . Parts Self-Destructed . | . . . . . . . . Prevented . | . . . . . . . . Parts Restored . | . . . . . . . . Kills | -11 -10 -10 -10 -9 -8 -8 -8 ------- Run | Yrd Mat Min Exi Min Mat Gar Mat Combat Hostiles Destroyed 121 | . 19 9 . 2 53 34 4 Guns 82 | . 9 5 . . 43 21 4 AOE 39 | . 10 4 . 2 10 13 . Classes Destroyed 18 | 3 7 2 . . 5 1 . Worker 12 | 2 3 . . . 6 . 1 Builder 5 | . 1 . . . 3 . 1 Tunneler 6 | 5 . . . 1 . . . Hauler 5 | . 1 . . . 3 . 1 Recycler 13 | 1 6 1 . . 5 . . Mechanic 2 | . 1 . . . 1 . . Operator 4 | . 2 . . . 2 . . Watcher 9 | . 3 . . . 5 1 . Swarmer 18 | . 6 3 . . 4 5 . Grunt 71 | . 13 . . 2 35 20 1 Brawler 2 | . . . . . . 1 1 Duelist 2 | . . . . . 1 1 . Sentry 10 | . . . . . 7 1 2 Demolisher 1 | . . 1 . . . . . Specialist 3 | . . . . . 2 1 . Hunter 8 | . . . . . 3 5 . Heavy 1 | . . . . . 1 . . Assembled 5 | . . 5 . . . . . Best Kill Streak 17 | 4 8 6 . 1 17 5 2 Combat Bots Only 9 | . 3 6 . 1 9 5 2 Max Kills in Single Turn 5 | 1 3 2 . 1 5 3 1 Gunslinging . | . . . . . . . . Exploded 3 | . 2 2 . 1 3 3 . Melee . | . . . . . . . . Uniques/NPCs Destroyed . | . . . . . . . . Combat | -11 -10 -10 -10 -9 -8 -8 -8 -------- Run | Yrd Mat Min Exi Min Mat Gar Mat Hostile Shots Fired 448 | . 56 22 . 3 243 121 3 Missed 123 | . 19 3 . . 61 38 2 Hits 325 | . 37 19 . 3 182 83 1 Melee 9 | . . 7 . . 2 . . Projectile 316 | . 37 12 . 3 180 83 1 AOE 6 | . . 6 . . . . . Critical Strikes 12 | . 1 1 . . 7 3 . Actively Blocked 1 | . . . . . 1 . . Part Disruptions 1 | . . . . . . . 1 Damage Taken 5366 | . 500 488 . 68 2878 1373 59 Core 712 | . 88 71 . . 370 163 20 Absorbed by Shields . | . . . . . . . . Redirected to Shielding 152 | . . . . . 50 102 . Regen/Repaired (Parts) 659 | . 170 . . . 279 . 210 Core Remaining (%) 68 | 100 . . . 36 . . . Volleys Fired 403 | 24 108 25 . 9 145 78 14 Largest 4 | 2 2 2 . 2 4 4 4 Hottest 114 | 70 70 70 . 70 102 114 114 Shots Fired 1175 | 48 207 50 . 15 568 246 41 Gun 1122 | 48 200 48 . 10 556 224 36 Cannon . | . . . . . . . . Launcher 53 | . 7 2 . 5 12 22 5 Special . | . . . . . . . . Kinetic 1026 | 24 140 41 . 5 556 224 36 Thermal 96 | 24 60 7 . 5 . . . Explosive 53 | . 7 2 . 5 12 22 5 Electromagnetic . | . . . . . . . . Robot Hit Streak 14 | 9 10 14 . 4 10 12 13 Robot Miss Streak 10 | 2 4 5 . 1 10 7 2 Penetration Max 1 | . . . . . . 1 . Secondary Targets 15 | . . . . . 11 4 . Max Gunslinging Chain 1 | . . . . . 1 1 . Shots Hit Robots 689 | 34 132 28 . 7 336 128 24 Core Hits 380 | 11 68 16 . 8 194 72 11 Critical Kills 1 | . . . . . 1 . . Critical Parts Destroyed 5 | . 1 . . . 2 2 . Critical Strikes 11 | . 5 . . . 3 3 . Burn 4 | . 4 . . . . . . Destroy 7 | . 1 . . . 3 3 . Melee Attacks . | . . . . . . . . Impact . | . . . . . . . . Slashing . | . . . . . . . . Piercing . | . . . . . . . . Sneak Attacks . | . . . . . . . . Combat Hostiles . | . . . . . . . . Follow-up Attacks . | . . . . . . . . Damage Inflicted 12268 | 331 1704 377 . 353 6199 2777 527 Guns 8858 | 331 1175 226 . 86 4557 1956 527 Cannons . | . . . . . . . . Explosions 3409 | . 529 151 . 267 1642 820 . Melee . | . . . . . . . . Ramming 1 | . . . . . . 1 . Kinetic 8036 | 96 700 177 . 23 4557 1956 527 Thermal 822 | 235 475 49 . 63 . . . Explosive 3409 | . 529 151 . 267 1642 820 . Electromagnetic . | . . . . . . . . Impact . | . . . . . . . . Slashing . | . . . . . . . . Piercing . | . . . . . . . . Highest Corruption 5 | . . 5 5 5 . . 1 Average Corruption 4 | . . 2 5 5 . . 1 Corruption Purged . | . . . . . . . . Corruption Blocked . | . . . . . . . . Effects 46 | . . 18 10 18 . . . Message Errors 5 | . . 1 2 2 . . . Matter Fused 12 | . . 6 2 4 . . . Heat Flow Errors 7 | . . 3 . 4 . . . Energy Discharges 8 | . . 3 2 3 . . . Parts Fused 1 | . . 1 . . . . . Data Loss (minor) 7 | . . 2 3 2 . . . Data Loss (major) 3 | . . 1 . 2 . . . Misfires 2 | . . 1 . 1 . . . Alerts 1 | . . . 1 . . . . Overload Shots . | . . . . . . . . Overflow Damage 41 | . 18 . . . 18 5 . Projectiles . | . . . . . . . . Explosions 41 | . 18 . . . 18 5 . Melee . | . . . . . . . . Knockbacks . | . . . . . . . . Impact . | . . . . . . . . Kinetic . | . . . . . . . . Secondary . | . . . . . . . . Self-Inflicted Damage 219 | . 40 . . 37 16 79 47 Shots 7 | . 1 . . 1 1 2 2 Rammed 1 | . . . . . . 1 . Targets Rammed 1 | . . . . . . 1 . Kicked . | . . . . . . . . Crushed . | . . . . . . . . Highest Temperature 486 | 146 220 184 . 269 486 216 48 Average Temperature 65 | 71 46 34 . 79 85 63 23 Received Heat Transfer 1683 | . 207 . . 18 1098 351 9 Effects 3 | . . . . 1 2 . . Shutdowns 2 | . . . . . 2 . . Energy Bleed 1 | . . . . 1 . . . Siege Activations . | . . . . . . . . Martial Activations . | . . . . . . . . Shielding Activations . | . . . . . . . . Robots Disrupted . | . . . . . . . . Combat Hostiles . | . . . . . . . . Robots Corrupted . | . . . . . . . . Combat Hostiles . | . . . . . . . . Parts Fried . | . . . . . . . . Impact Corruptions . | . . . . . . . . Robots Melted . | . . . . . . . . Combat Hostiles . | . . . . . . . . Parts Melted 3 | 1 2 . . . . . . Heat Transferred 2701 | 703 1665 148 . 185 . . . Parts Sabotaged . | . . . . . . . . Parts Stolen . | . . . . . . . . Parts Stripped . | . . . . . . . . Power Chain Reactions . | . . . . . . . . Alert | -11 -10 -10 -10 -9 -8 -8 -8 ------- Run | Yrd Mat Min Exi Min Mat Gar Mat Maximum Alert Level 5 | . 1 . . . 2 5 4 Low Security (%) 43 | 100 90 100 . 100 22 1 . Level 1 10 | . 9 . . . 20 10 . Level 2 16 | . . . . . 56 5 . Level 3 14 | . . . . . . 25 95 Level 4 8 | . . . . . . 30 4 Level 5 6 | . . . . . . 25 . High Security . | . . . . . . . . Max Security . | . . . . . . . . Sterilizations 1 | . . . . . 1 . . Peak Influence 2298 | 10 266 94 . 118 694 2298 1119 Initial 1119 | . . 94 . . . 178 1119 Average 519 | 2 84 12 . 27 393 1187 974 Influence Increases 5256 | 40 677 113 . 196 1698 2310 222 Destroy 0b10 Robot/C 2560 | . 380 80 . 100 1080 840 80 Destroy 0b10 Robot/NC 285 | 40 85 5 . 5 125 10 15 Destroy Leader 436 | . 88 10 . 20 256 30 32 Allied During Kill 104 | . . 3 . 19 8 74 . Successful Hack 134 | . 28 . . . 13 92 1 Select Force Hacks 60 | . . . . . 60 . . Disable Machine 150 | . 45 . . 15 15 15 60 Anti-Garrison Action 1050 | . . . . . . 1050 . Destroy Structure 357 | . 51 15 . 37 66 154 34 Lose Combat Pursuer 120 | . . . . . 75 45 . Influence Decreases 4283 | 40 435 355 . 196 1424 286 1547 Entered New Map 1423 | . . 148 . . . 96 1179 Time Decay 1858 | 40 435 185 . 196 634 . 368 Lost Part 242 | . . 22 . . 130 90 . Lost Ally 160 | . . . . . 60 100 . Purge Threat 600 | . . . . . 600 . . Squads Dispatched 18 | . 6 . . . 12 . . Investigation 8 | . 3 . . . 5 . . Extermination . | . . . . . . . . Reinforcement 8 | . 3 . . . 5 . . Assault 1 | . . . . . 1 . . Garrison 1 | . . . . . 1 . . Intercept . | . . . . . . . . Searches Triggered . | . . . . . . . . Construction Impeded 2 | . . . . . 2 . . Haulers Reinforced . | . . . . . . . . Active Scanning Responses . | . . . . . . . . Cargo Convoy Interrupts . | . . . . . . . . Stealth | -11 -10 -10 -10 -9 -8 -8 -8 --------- Run | Yrd Mat Min Exi Min Mat Gar Mat Distress Signals 9 | . 1 . . . 7 1 . Communications Jammed . | . . . . . . . . Distress Signals . | . . . . . . . . Times Spotted 182 | . 34 13 . 4 77 49 5 Peak Tracking Total 7 | . 3 7 . 2 6 6 5 Tactical Retreats 9 | . . 2 . . 5 2 . Traps | -11 -10 -10 -10 -9 -8 -8 -8 ------- Run | Yrd Mat Min Exi Min Mat Gar Mat Traps Triggered 13 | . 3 . . . 2 8 . Indirectly . | . . . . . . . . Trap Hack Attempts . | . . . . . . . . Triggered . | . . . . . . . . Disarmed . | . . . . . . . . Reprogrammed . | . . . . . . . . Reused . | . . . . . . . . Traps Extracted . | . . . . . . . . Installed . | . . . . . . . . Triggered . | . . . . . . . . Machines | -11 -10 -10 -10 -9 -8 -8 -8 ---------- Run | Yrd Mat Min Exi Min Mat Gar Mat Machines Disabled 19 | . 3 . . 1 1 10 4 Max in Single Turn 2 | . 2 . . 1 1 2 2 Garrison Relay 6 | . . . . . . 6 . Phase Generator 1 | . . . . . . 1 . Machines Repaired . | . . . . . . . . Machines Dismantled . | . . . . . . . . Machines Sabotaged . | . . . . . . . . Overloaded Fab Kills . | . . . . . . . . Hacking | -11 -10 -10 -10 -9 -8 -8 -8 --------- Run | Yrd Mat Min Exi Min Mat Gar Mat Machines Accessed 29 | . 9 1 1 . 12 4 2 Terminals 17 | . 6 . . . 7 4 . Fabricators . | . . . . . . . . Repair Stations 4 | . 1 . . . 2 . 1 Recycling Units 3 | . 2 . . . 1 . . Scanalyzers 2 | . . . . . 1 . 1 Garrison Access 1 | . . . . . 1 . . Total Hacks 121 | . 33 1 23 . 46 12 6 Successful 93 | . 22 1 23 . 33 8 6 Failed 27 | . 11 . . . 12 4 . Catastrophic 4 | . 2 . . . 1 1 . Database Lockouts 1 | . . . . . 1 . . Manual 67 | . 26 . . . 32 9 . Terminals 61 | . 22 . . . 27 12 . Fabricators . | . . . . . . . . Repair Stations 20 | . 5 . . . 11 . 4 Recycling Units 7 | . 6 . . . 1 . . Scanalyzers 7 | . . . . . 5 . 2 Garrison Access 2 | . . . . . 2 . . Terminal Hacks 39 | . 4 1 23 . 6 5 . Record 23 | . . . 23 . . . . Robot Analysis 4 | . 3 . . . 1 . . Prototype ID Bank 1 | . 1 . . . . . . Open Door 1 | . . 1 . . . . . Alert Level 1 | . . . . . 1 . . Unreport Threat 4 | . . . . . 4 . . Garrison Registry 2 | . . . . . . 2 . Patrol Navigation 2 | . . . . . . 2 . Security Stations 1 | . . . . . . 1 . Fabricator Hacks . | . . . . . . . . Repair Station Hacks 15 | . 4 . . . 7 . 4 Scan Component 8 | . 2 . . . 4 . 2 Repair 7 | . 2 . . . 3 . 2 Recycling Unit Hacks 2 | . 2 . . . . . . Retrieve Components 2 | . 2 . . . . . . Scanalyzer 4 | . . . . . 2 . 2 Insert Component 2 | . . . . . 1 . 1 Retrieve Study 2 | . . . . . 1 . 1 Garrison Access Hacks 1 | . . . . . 1 . . Unlock Access 1 | . . . . . 1 . . Unauthorized Hacks 32 | . 12 . . . 17 3 . Terminals 22 | . 7 . . . 12 3 . Track 1 | . . . . . . 1 . Botnet 11 | . 3 . . . 6 2 . Disrupt 1 | . . . . . 1 . . Skim 9 | . 4 . . . 5 . . Fabricators . | . . . . . . . . Repair Stations 4 | . 1 . . . 3 . . Mechanics 1 | . . . . . 1 . . Patch 3 | . 1 . . . 2 . . Recycling Units 5 | . 4 . . . 1 . . Reject 1 | . 1 . . . . . . Recyclers 1 | . 1 . . . . . . Mask 2 | . 2 . . . . . . Tunnel 1 | . . . . . 1 . . Scanalyzers 1 | . . . . . 1 . . Extract 1 | . . . . . 1 . . Garrison Access . | . . . . . . . . Data Cores Recovered 1 | . . . . . 1 . . Used . | . . . . . . . . Hacking Detections 24 | . 8 . . . 11 3 2 Full Trace Events 2 | . 1 . . . . 1 . Feedback Events . | . . . . . . . . Feedback Blocked . | . . . . . . . . Robot Schematics Acquired . | . . . . . . . . Robots Built . | . . . . . . . . Authchips . | . . . . . . . . Time . | . . . . . . . . Total Robot Build Rating . | . . . . . . . . Part Schematics Acquired 8 | . . . . . 8 . . Parts Built . | . . . . . . . . Authchips . | . . . . . . . . Time . | . . . . . . . . Total Part Build Rating . | . . . . . . . . Part Studies Acquired 2 | . . . . . 1 . 1 Parts Repaired 7 | . 2 . . . 3 . 2 Time 240 | . 52 . . . 84 . 104 Parts Recycled . | . . . . . . . . Recycled Matter . | . . . . . . . . Retrieved Matter . | . . . . . . . . Retrieved Components 4 | . 4 . . . . . . Parts Scanalyzed 1 | . . . . . 1 . . Part Schematics Acquired . | . . . . . . . . Parts Damaged . | . . . . . . . . Bothacking | -11 -10 -10 -10 -9 -8 -8 -8 ------------ Run | Yrd Mat Min Exi Min Mat Gar Mat Used RIF Installer . | . . . . . . . . Robots Hacked . | . . . . . . . . Non-combat . | . . . . . . . . Combat . | . . . . . . . . Robot Hacks Applied . | . . . . . . . . Relay Couplers Released 29 | . . . . . . 29 . Machine Destruction 26 | . . . . . . 26 . Programmers 3 | . . . . . . 3 . Fabnet Peak Effective % . | . . . . . . . . Robots Rewired 5 | . . . . . . 5 . Allies Hacked . | . . . . . . . . Hacks Repelled . | . . . . . . . . Allies | -11 -10 -10 -10 -9 -8 -8 -8 -------- Run | Yrd Mat Min Exi Min Mat Gar Mat Total Allies 8 | . . 3 . . . 5 . Largest Group 4 | . . 3 3 3 3 4 . Highest-Rated Group 160 | . . 40 40 40 40 160 . Highest-Rated Ally 40 | . . 16 16 16 16 40 . Initial Warlord ECA Mod 11 | . . . . . . . 11 Total Orders . | . . . . . . . . Ally Attacks 59 | . . . . 10 12 37 . Total Damage 974 | . . . . 89 132 753 . Kills 12 | . . . . 3 1 8 . Allies Corrupted . | . . . . . . . . Allies Melted . | . . . . . . . . Intel | -11 -10 -10 -10 -9 -8 -8 -8 ------- Run | Yrd Mat Min Exi Min Mat Gar Mat Active Infowar (turns) 2545 | 68 1912 564 . . 1 . . Terrain 2544 | 68 1912 564 . . . . . Structural 1 | . . . . . 1 . . Robot Analysis Total 4 | . 3 . . . 1 . . Derelict Logs Recovered 3 | . . 2 . 1 . . . Drone Launches . | . . . . . . . . Drone Recoveries . | . . . . . . . . Exploration | -11 -10 -10 -10 -9 -8 -8 -8 ------------- Run | Yrd Mat Min Exi Min Mat Gar Mat Turns Passed 11059 | 176 1917 1123 455 841 2872 2826 849 Spaces Moved 4816 | 64 959 645 280 508 1022 1056 282 Core 7 | 5 . . . . 2 . . Treads 4809 | 59 959 645 280 508 1020 1056 282 Legs . | . . . . . . . . Wheels . | . . . . . . . . Hover . | . . . . . . . . Flight . | . . . . . . . . Fastest Speed 50 | 50 160 160 160 160 160 160 200 Average Speed 192 | 151 160 160 160 160 222 232 217 Slowest Speed 650 | 160 160 160 160 160 650 245 240 Overloaded Moves . | . . . . . . . . Propulsion Burnouts . | . . . . . . . . Robots Hopped . | . . . . . . . . Potential Cave-ins . | . . . . . . . . Cave-ins Triggered . | . . . . . . . . Exploration Rate (%) 65 | 3 99 94 59 91 69 90 20 Regions Visited 7 Branch Regions 3 Pre-discovered Areas 2 | . . . 1 . 1 . . Known Exits Taken 2 | . . . . 1 1 . . Unknown Exits Taken 4 | 1 1 1 1 . . . . Scrap Searched 2 | . . 1 . 1 . . . Spaces Dug . | . . . . . . . . Terrain Destroyed 454 | . 48 15 . 58 94 179 60 Melee . | . . . . . . . . Projectile 3 | . . . . . . 1 2 AOE 451 | . 48 15 . 58 94 178 58 Terrain Rammed . | . . . . . . . . Walls Destroyed . | . . . . . . . . Machines Disabled . | . . . . . . . . Actions | -11 -10 -10 -10 -9 -8 -8 -8 --------- Run | Yrd Mat Min Exi Min Mat Gar Mat Total 5861 | 96 1155 698 293 522 1319 1288 490 Wait 316 | . 57 5 . . 61 18 175 Move 4809 | 63 958 644 279 507 1021 1055 282 Hop . | . . . . . . . . Pick Up 66 | 2 12 10 5 1 15 17 4 Fast Attach 31 | 7 3 2 2 . 12 5 . Attach 20 | . . 5 . . 9 6 . Detach . | . . . . . . . . Swap 92 | . 15 2 . 4 36 24 11 Drop 56 | . 2 5 7 1 20 17 4 Fire 403 | 24 108 25 . 9 145 78 14 Melee . | . . . . . . . . Ram . | . . . . . . . . Kick . | . . . . . . . . Crush 1 | . . . . . . 1 . Escape Stasis 6 | . . . . . . 6 . Rewire 61 | . . . . . . 61 . Trap . | . . . . . . . . Miscellaneous . | . . . . . . . . Route ------- -11/Scrapyard -10/Materials (discovered 5 exits: [*Mat x3] / *Min / [*Sub]) -10/Mines (discovered 3 exits: [*Mat x2] / *Exi) -10/Exiles -9/Mines (discovered 2 exits: *Mat x2) -8/Materials (discovered 4 exits: *Fac x3 / Gar) -8/Garrison (discovered 4 exits: *Mat x4) -8/Materials History --------- Turn | Location | Event 3 | -11/Scrapyard | Discovered new exit (range 15) 177 | -11/Scrapyard | Entered Materials 311 | -10/Materials | Build established: Mutant 385 | -10/Materials | Discovered new exit (range 11) 472 | -10/Materials | Discovered new exit (range 8) 657 | -10/Materials | Discovered new exit (range 6) 1283 | -10/Materials | Discovered new exit (range 16) 1496 | -10/Materials | Repaired Lgt. Assault Rifle 1524 | -10/Materials | Repaired Grenade Launcher 1939 | -10/Materials | Discovered new exit (range 9) 2094 | -10/Materials | Entered Mines 2100 | -10/Mines | Met a Derelict who couldn't figure out how to use a Trap Extractor 2121 | -10/Mines | Build established: Scavenger-Mutant 2216 | -10/Mines | Learned 2 Materials zone layouts 2269 | -10/Mines | Found a hidden stash of uninstalled traps 2524 | -10/Mines | Deemed a non-threat by the Exiles lab entrance 2524 | -10/Mines | Discovered new exit (range 5) 2570 | -10/Mines | Assembled infested the area 2659 | -10/Mines | Core integrity fell below 50% 2707 | -10/Mines | Lost 6 parts (1p2n1u2w) 2755 | -10/Mines | Received a Rocket Launcher from a helpful Derelict 2775 | -10/Mines | Discovered new exit (range 11) 2883 | -10/Mines | Discovered new exit (range 6) 2941 | -10/Mines | Build established: Mutant 2992 | -10/Mines | Assisted by bots powering up and referring to "LRC-V3" 3217 | -10/Mines | Entered Exiles 3217 | -10/Exiles | Accompanied by 3 allies 3241 | -10/Exiles | Discovered new exit (range 15) 3260 | -10/Exiles | Met 8R-AWN 3287 | -10/Exiles | Met EX-HEX 3379 | -10/Exiles | Met EX-DEC 3503 | -10/Exiles | Learned location of Zion (-6) 3567 | -10/Exiles | Met EX-BIN 3672 | -10/Exiles | Entered Mines 3672 | -9/Mines | Accompanied by 3 allies 3717 | -9/Mines | Discovered new exit (range 11) 3937 | -9/Mines | Build established: Scavenger-Mutant 3987 | -9/Mines | Found a damaged Exp. Sensor Array with a note attached 3991 | -9/Mines | Found Prototype Device 4026 | -9/Mines | Identified exit to Materials 4513 | -9/Mines | Entered Materials 4513 | -8/Materials | Accompanied by 3 allies 4513 | -8/Materials | Evolved 4 slots: Utility x2, Weapon x2 4575 | -8/Materials | Identified exit to Garrison 4651 | -8/Materials | Garrison activated, responded to threat 4693 | -8/Materials | Lost 3 allies 4727 | -8/Materials | Repaired Lgt. Assault Rifle 4816 | -8/Materials | Build established: Scavenger-Tank 4891 | -8/Materials | Lost 5 parts (2n2u1w) 4896 | -8/Materials | Destroyed 9 combat bots 5088 | -8/Materials | Destroyed 8 combat bots 5339 | -8/Materials | Repaired Hvy. Assault Rifle 5360 | -8/Materials | Build established: Scavenger-Gunner 5366 | -8/Materials | Repaired Lgt. Treads 5426 | -8/Materials | Discovered new exit (range 5) 5429 | -8/Materials | Core integrity fell below 50% 5494 | -8/Materials | Central database locked down 5494 | -8/Materials | Identified Exp. Sensor Array 5713 | -8/Materials | First assault squad dispatched 5743 | -8/Materials | Build established: Scavenger-Tank 6043 | -8/Materials | Discovered new exit (range 9) 6251 | -8/Materials | Learned Storage non-interactive machine intel 6317 | -8/Materials | Learned location of 1 exit from Storage 6373 | -8/Materials | Learned Factory garrison access intel 6419 | -8/Materials | Learned Storage trap positions 6455 | -8/Materials | Learned 4 Lower Caves zone layouts 6483 | -8/Materials | Learned Storage emergency access door positions 6526 | -8/Materials | Build established: Hacker-Gunner 6527 | -8/Materials | Learned location of 1 exit from Extension 6562 | -8/Materials | Learned Factory emergency access door positions 6609 | -8/Materials | Identified exit to Factory 6999 | -8/Materials | Sterilization system engaged 6999 | -8/Materials | Non-combat units ordered to evacuate 7099 | -8/Materials | Combat units ordered to evacuate 7299 | -8/Materials | Ambient heat levels rising (+10) 7385 | -8/Materials | Entered Garrison 7409 | -8/Garrison | Triggered checkpoint 7485 | -8/Garrison | Triggered checkpoint 7497 | -8/Garrison | Garrison Relay disabled 7528 | -8/Garrison | Lost 3 parts (1u2w) 7677 | -8/Garrison | Garrison Relay disabled 7807 | -8/Garrison | Triggered checkpoint 7811 | -8/Garrison | Core integrity fell below 20% 7855 | -8/Garrison | Triggered checkpoint 7883 | -8/Garrison | Triggered checkpoint 7919 | -8/Garrison | Lost 4 allies 8038 | -8/Garrison | Build established: Scavenger-Gunner 8044 | -8/Garrison | Discovered new exit (range 10) 8290 | -8/Garrison | Triggered checkpoint 8616 | -8/Garrison | Phase Generator disabled 8647 | -8/Garrison | Learned Materials security intel 8647 | -8/Garrison | Discovered new exit (range 82) 8647 | -8/Garrison | Discovered new exit (range 48) 8647 | -8/Garrison | Discovered new exit (range 10) 8647 | -8/Garrison | Discovered new exit (range 57) 8857 | -8/Garrison | Triggered checkpoint 9071 | -8/Garrison | Garrison Relay disabled 9328 | -8/Garrison | Garrison Relay disabled 9369 | -8/Garrison | Triggered checkpoint 9533 | -8/Garrison | Discovered new exit (range 13) 9533 | -8/Garrison | Discovered new exit (range 53) 9533 | -8/Garrison | Discovered new exit (range 85) 9533 | -8/Garrison | Discovered new exit (range 69) 9807 | -8/Garrison | Triggered checkpoint 9928 | -8/Garrison | Garrison Relay disabled 10211 | -8/Garrison | Entered Materials 10377 | -8/Materials | Repaired Gauss Rifle 10438 | -8/Materials | Repaired Enh. Autogun 11060 | -8/Materials | Destroyed by G-47 Trooper with Particle Gun Last Messages --------------- 11005_ The unstable cave ceiling collapses. 11005_ U-05 Engineer builds a Wall. 11011_ U-05 Engineer lays Concrete. 11013_ U-05 Engineer builds a Wall. 11015_ U-05 Engineer lays Concrete. 11018_ U-05 Engineer builds a Wall. 11018_ U-05 Engineer lays Concrete. 11022_ The unstable cave ceiling collapses. 11023_ U-05 Engineer lays Concrete. 11023_ U-05 Engineer builds a Wall. 11024_ U-05 Engineer lays Concrete. 11048_ Neutrino Reactor explodes. 11051_ Slug penetrates Wall. 11051_ Slug penetrates B-36 Bruiser. 11055_ Slug penetrates Y-45 Defender. 11055_ Slug penetrates Wall. 11055_ Slug penetrates Y-45 Defender. 11055_ Y-45 Defender destroyed. 11058_ Slug penetrates G-47 Trooper. 11058_ Slug penetrates Wall. Map ----- +----------------------------------------------------+ | ??# ### #= "" #? #?????????????????? | | ??# """ + + # """ #? ??????????????????? | | ??# """ ### # """ #??????????????????????? | | ??# """ ###############??????????????????????? | | ??# ] # ??????????????????????? | | ??# !=+ ??????????????????????? | | ??# " !*# ??????????????????????? | | ??# ] =* ####+#######?????????????????????????? | | ??#! [[# #??####+#??????????????????? | | ??###### ! # #?? ??????????????????? | | ??????## # #?? """ #???????????????? | | ??????# # ### """ #???????????????? | | ??????## # # # """ #???????????????? | | ???????##### # # #???????????????? | | ???????????# # """ ?????????????????? | | ???????????# # """ #???????????????? | | ???????????####### # """ #??????????????? | | ?????????????????## #????#??????????? | | ??????????????????# #########?? #??????????? | | ??????????????????##### #? ??????????? | | ??????????????????????# #! !???????????? | | ??????????????????????# !%= ? ?????????? | | ??????????????????????# bg#[ g ????????? | | ??????????????????????# ; ??????????? | | ??????????????????????# #??????????????? | | ??????????????????????# @ ##??????????????? | | ??????????????????????# = #??????????????? | | ??????????????????????#### ###??????????????? | | ??????????????????????????# #????????????????? | | ???????????????????????????#####????????????????? | | ????????????????????????????????????????????????? | | ????????????????????????????????????????????????? | | ????????????????????????????????????????????????? | | ????????????????????????????????????????????????? | | ????????????????????????????????????????????????? | | ????????????????????????????????????????????????? | | ????????????????????????????????????????????????? | | ????????????????????????????????????????????????? | | ????????????????????????????????????????????????? | | ????????????????????????????????????????????????? | | ????????????????????????????????????????????????? | | ????????????????????????????????????????????????? | | ????????????????????????????????????????????????? | | ????????????????????????????????????????????????? | | ????????????????????????????????????????????????? | | ????????????????????????????????????????????????? | | ????????????????????????????????????????????????? | | ????????????????????????????????????????????????? | | ????????????????????????????????????????????????? | | ????????????????????????????????????????????????? | +----------------------------------------------------+ Best States ------------- Heat Dissipation 59 Energy Generation 16 Energy Capacity 290 Matter Stores 300 Matter Capacity 300 Sight Range 16 Terrain Scan Range 16 Terrain Scan Density 10 Armor Coverage 225 Propulsion Shielding 66 Evasion (%) 40 Core Analysis 9 Recoil Reduction 6 Offensive Hacking 20 Defensive Hacking 10 Item Schematics ----------------- Hrd. Medium Armor Plating | -8/Materials | Extracted Pulse Rifle | -8/Materials | Extracted Imp. Heat Sink | -8/Materials | Extracted Lgt. Armor Plating | -8/Materials | Extracted Imp. Sensor Array | -8/Materials | Extracted Particle Gun | -8/Materials | Extracted Utility Shielding | -8/Materials | Extracted Hvy. Assault Rifle | -8/Materials | Extracted Robot Schematics ------------------ None Fabricated ------------ Nothing Repaired ---------- Lgt. Assault Rifle | 30% | -10/Materials Grenade Launcher | 35% | -10/Materials Lgt. Assault Rifle | 22% | -8/Materials Hvy. Assault Rifle | 66% | -8/Materials Lgt. Treads | 25% | -8/Materials Gauss Rifle | 9% | -8/Materials Enh. Autogun | 48% | -8/Materials Studied --------- Hvy. Assault Rifle | -8/Materials | Hacked Lgt. Treads | -8/Materials | Hacked Alien Tech Used ----------------- None Achievements -------------- None Challenges ------------ None Game ------ Seed AntimissileScrapoidReplica Manual? 0 Play Time 00:51:00 Cumulative 735.2 hours Start 2026.08.02 @ 10:51:22 End 2026.08.02 @ 13:12:26 Sessions 1 Manual Loads 0 Difficulty Rogue Special Mode None Game No. 360 Rogue 360 Adventurer 0 Explorer 0 Win Type - Total 7 Types 3/0/2/1/0/0/0/0/0/1 Lore% 87 Gallery% 76 Achievement% 60 Wizard Run 0 Options --------- Layout 2 ASCII 0 Keyboard 1 Movement Vi Keybinds 0 Fullscreen 1 Font 16/Proggy Map View 55x47 Zoom Use 0% Tactical HUD 1 Map Filters NONE Filters NONE Steam 0 RUN: 37ece47f-1284-4041-bf1a-4ae8990ea150